[Event "British Championship 2024"]
[Site "Hull"]
[Date "2024.07.31"]
[Round "4.6"]
[White "Bazakutsa, Svyatoslav"]
[Black "Derakhshani, Borna"]
[Result "1-0"]
[Annotator "TA"]
[ECO "D10"]
[WhiteElo "2470"]
[BlackElo "2355"]
[PlyCount "133"]
[EventDate "2024.07.31"]
[EventCountry "GBR"]
[SourceTitle "playchess.com"]
[Source "ChessBase"]
[SourceQuality "1"]
[TimeControl "40/5400+30:1800+30"]

{[%evp 17,133,20,18,10,14,3,34,0,17,10,26,0,0,0,14,14,16,16,73,14,8,-30,-18,-26,43,40,42,16,36,0,25,23,32,24,24,25,31,31,21,20,30,29,27,19,25,6,53,50,53,43,44,0,62,37,38,47,42,0,27,3,8,0,0,0,0,0,0,0,3,0,8,8,8,8,8,8,96,62,95,95,95,95,139,139,139,102,102,102,102,98,218,209,368,372,333,309,300,304,301,308,313,265,328,314,595,409,1306,904,725,555,1114,537,866,811,725,584,662,600]} 1. d4 {[%emt 0:03:36]} d5 {[%emt 0:00:05]} 2. c4 {[%emt 0:00:12]} c6 {[%emt 0:00:04]} 3. cxd5 {[%emt 0:00:33]} cxd5 {[%emt 0:00:06]} 4. Nc3 {[%emt 0:00:10]} Nf6 {[%emt 0:00:10]} 5. Bf4 {[%emt 0:00:09]} Nc6 {[%emt 0:00:11]} 6. e3 {[%emt 0:00:13]} a6 {[%emt 0:00:09]} 7. Bd3 {[%emt 0:00:25]} Bg4 {[%emt 0:00:16]} 8. Nge2 {[%emt 0:00:43]} e6 {[%emt 0:00:12]} 9. O-O {[%emt 0:00:10]} Bd6 {[%emt 0:00:04]} 10. Bg5 {[%emt 0:00:14]} Bh5 {[%emt 0:00:04][%cal Od6h2]} 11. f4 {[%emt 0:00:18]} Be7 {[%emt 0:51:09]} 12. h3 {[%emt 0:11:09] White is slightly better.} Bxe2 {[%emt 0:05:45]} 13. Qxe2 {[%emt 0:01:18]} h6 {[%emt 0:01:59]} (13... Nd7 {seems wilder.} 14. Qh5 h6 15. Rad1 Rc8) 14. Bxf6 {[%emt 0:00:57]} Bxf6 {[%emt 0:04:06]} 15. Rad1 {[%emt 0:01:43]} g6 {[%emt 0:01:35]} 16. g4 {[%emt 0:00:36]} Qd6 {[%emt 0:02:38]} 17. Kg2 {[%emt 0:04:25]} Bg7 {[%emt 0:05:42] [#]} (17... O-O $11 {remains equal.}) 18. Na4 {[%emt 0:06:25]} (18. f5 $1 $16 {[%cal Rf5g6]}) 18... h5 $11 {[%emt 0:16:14]} 19. Nc5 {[%emt 0:03:25]} hxg4 {[%emt 0:01:19]} 20. hxg4 {[%emt 0:00:49]} Qc7 {[%emt 0:00:16]} (20... g5 $11) 21. Rh1 $14 {[%emt 0:03:58]} Ke7 {[%emt 0:02:44][%cal Og7d4]} 22. Bb1 {[%emt 0:04:18]} a5 {[%emt 0:02:17]} 23. Rc1 {[%emt 0:05:36]} Rxh1 {[%emt 0:01:23]} (23... Bxd4 $5 24. exd4 Qxf4 $11) 24. Rxh1 {[%emt 0:00:09]} Rh8 {[%emt 0:00:01]} 25. Rxh8 {[%emt 0:51:29]} Bxh8 {[%emt 0:04:31]} 26. Qf2 {[%emt 0:00:00][%cal Ob1g6]} b6 {[%emt 0:00:00]} 27. Na4 {[%emt 0:00:00]} Bf6 {[%emt 0:00:00]} 28. Nc3 {[%emt 0:00:00]} Qc8 {[%emt 0:00:00]} 29. Qf1 {[%emt 0:00:00]} Na7 {[%emt 0:00:00]} 30. Bc2 {[%emt 0:00:00]} Kf8 {[%emt 0:00:00]} 31. Qe2 {[%emt 0:00:00] Black is weak on the light squares} Bg7 {[%emt 0:00:00] [#]} (31... b5 $11 {is more appropriate.}) 32. f5 $1 {[%emt 0:00:00]} gxf5 {[%emt 0:00:32]} 33. gxf5 {[%emt 0:00:00]} Qd8 {[%emt 0:00:16]} 34. Qg4 {[%emt 0:00:00]} Qf6 {[%emt 0:00:25]} (34... e5 $1 $11) 35. fxe6 {[%emt 0:00:00] White is more active.} (35. Qg3 {feels hotter.} Bh6 36. Qb8+ Kg7 37. Ne2) 35... fxe6 {[%emt 0:00:00]} 36. Qg3 {[%emt 0:00:00]} Nc8 {[%emt 0:01:58]} 37. Bd1 {[%emt 0:00:00]} Bh6 {[%emt 0:00:23]} 38. Bg4 {[%emt 0:00:00] Strongly threatening Qb8.} Ne7 {[%emt 0:00:48]} 39. Ne2 {[%emt 0:00:00]} Kf7 {[%emt 0:00:32]} 40. Qh3 {[%emt 0:00:00]} Ng8 {[%emt 0:02:02]} 41. Nc3 {[%emt 0:24:24]} Ke7 {[%emt 0:07:22]} 42. Qg3 {[%emt 0:00:00]} Kf7 {[%emt 0:11:01]} 43. Nb5 {[%emt 0:00:00] Nc7 is the strong threat.} Qg5 {[%emt 0:05:35]} 44. Nd6+ {[%emt 0:01:42]} Ke7 {[%emt 0:00:40][%cal Og8f6]} (44... Kf8 {simplifies} 45. Bxe6 Qxg3+ 46. Kxg3 Bxe3 47. Nf5 Bc1) 45. Nc8+ {[%emt 0:00:17]} Kf7 {[%emt 0:00:52]} 46. Kf2 {[%emt 0:04:11][%cal Of2e2]} b5 {[%emt 0:06:01]} (46... Kg7 $11) 47. Nd6+ {[%emt 0:05:25]} Ke7 {[%emt 0:00:16]} 48. Nxb5 {[%emt 0:01:42]} Nf6 {[%emt 0:00:40]} 49. Qd6+ {[%emt 0:00:13]} Kf7 {[%emt 0:00:04]} 50. Bxe6+ {[%emt 0:03:23]} (50. Qxe6+ $6 Kf8 51. Bf3 Ne4+ 52. Kf1 (52. Bxe4 Qxe3+ 53. Kf1 Qc1+ 54. Kg2 Qg5+ 55. Kf2 Qd2+ 56. Kg3 Qf4+ 57. Kg2 Qd2+ 58. Kh3 Qe3+ 59. Kg2 Qd2+ 60. Kf3 Qe3+ 61. Kg2 Qe2+ 62. Kh3 Qe3+ 63. Kg4 Qf4+ 64. Kh3 Qe3+ $11) 52... Qxe3 53. Qf5+ Ke7 54. Qe5+ Kf8 55. Bxe4 dxe4 $11) 50... Kg6 {[%emt 0:00:04] ( -> ...Ne4+)} 51. Qe5 {[%emt 0:00:06] Qxg5+ would now be deadly.} Ne4+ {[%emt 0:00:36]} 52. Kf1 {[%emt 0:00:13]} Ng3+ {[%emt 0:02:49]} 53. Ke1 {[%emt 0:00:06] Black must now prevent Qxg5+.} Qh4 {[%emt 0:00:07]} (53... Qxe5 $16 54. dxe5 Bxe3) 54. Kd1 $18 {[%emt 0:01:45][%cal Ob5c3]} (54. Qxd5 Nf5+ 55. Ke2 Qg4+ 56. Kd2 (56. Kd3 Qd1+ 57. Ke4 Qh1+ 58. Kd3 Qf1+ 59. Ke4 Qb1+ 60. Ke5 Bg7+ 61. Kf4 Bh6+ 62. Ke5 Bg7+ 63. Kf4 Bh6+ 64. Ke5 $11) 56... Nxe3 57. Bxg4 Nxd5+ 58. Ke2 Kf6 $14) (54. Bxd5 Ne4+ 55. Kd1 Qg4+ 56. Kc2 Qe2+ 57. Kb3 (57. Kc1 $2 Bxe3+ 58. Kb1 Qd1#) 57... Qxb5+ 58. Kc2 Qe2+ 59. Kb3 Qxe3+ 60. Ka4 Nf6 61. Qxe3 Bxe3 $17) 54... Qh2 $2 {[%emt 0:00:36] [#]} (54... Qh1+ 55. Kc2 Qe4+ 56. Kc3 Qxe3+ 57. Qxe3 Bxe3 58. Bxd5 Kf6) 55. Bf5+ $1 {[%emt 0:00:07][%mdl 512]} Kg5 {[%emt 0:00:43]} 56. Bd3+ {[%emt 0:00:52]} Kh4 {[%emt 0:00:15]} 57. Qe7+ {[%emt 0:00:33]} (57. Qxd5 Bxe3 58. Qd8+ Bg5 59. Qxa5 Qxb2 $11) (57. Nc3 Qxb2 58. Ne2 (58. Nxd5 Qxa2 59. Qh8 Qxd5 $16) 58... Nxe2 59. Qh2+ (59. Bxe2 Qb1+ 60. Kd2 Qb4+ 61. Kc2 Qa4+ 62. Kd3 Qc4+ 63. Kd2 Qb4+ 64. Kd1 Qb1+ 65. Kd2 Qb4+ $11) 59... Kg5 60. Qxe2 (60. Bxe2 Qb1+ 61. Kd2 Qxa2+ 62. Ke1 Qb1+ 63. Bd1 Kg6 $11) 60... Qxe2+ 61. Kxe2 Kf6 $11) 57... Kh3 {[%emt 0:00:33]} 58. Qe6+ {[%emt 0:00:18]} Kg2 {[%emt 0:00:00]} 59. Qxd5+ {[%emt 0:00:14]} Kg1 {[%emt 0:00:01]} 60. Qf3 {[%emt 0:00:13] aiming for d5.} Qh4 $2 {[%emt 0:00:59]} (60... Qf2 61. Qxf2+ Kxf2) 61. Nc3 {[%emt 0:00:37]} Nh1 {[%emt 0:00:37]} (61... Qh2 $142 62. Ne4 Qh5 63. Qxh5 Nxh5) 62. Be4 {[%emt 0:00:46][%csl Ge4][%cal Rf3g2] White is clearly winning.} Nf2+ {[%emt 0:00:22]} 63. Kc2 {[%emt 0:00:25]} Qh2 {[%emt 0:00:00] Prevents Qg2+.} 64. Kb3 {[%emt 0:01:00] And now Ne2+ would win.} Qb8+ {[%emt 0:01:31] [#]} 65. Bb7 $1 {[%emt 0:00:06][%csl Gb7][%cal Rf3g2]} Qg8+ {[%emt 0:00:13]} 66. Kc2 {[%emt 0:00:08] White threatens Ne2+ and mate.} Qg6+ {[%emt 0:01:04]} 67. Be4 {[%emt 0:00:09] Weighted Error Value: White=0.14 (very precise) /Black=0.28 (precise) .  Mistake:       	White=1     	Black=9      Inaccurate:     	White=10    	Black=5      OK:         	White=13    	Black=14     Best:        	White=7     	Black=6      Brilliant:      	White=1     	---} 1-0

[Event "British Championship 2024"]
[Site "Hull"]
[Date "2024.07.31"]
[Round "4.7"]
[White "Salmons, Calum"]
[Black "McShane, Luke J"]
[Result "1/2-1/2"]
[Annotator "TA"]
[ECO "A47"]
[WhiteElo "1999"]
[BlackElo "2617"]
[PlyCount "83"]
[EventDate "2024.07.31"]
[EventCountry "GBR"]
[SourceTitle "playchess.com"]
[Source "ChessBase"]
[SourceQuality "1"]
[TimeControl "40/5400+30:1800+30"]

{[%evp 14,83,-19,-23,-18,-24,-19,-20,-19,-45,-29,-39,-43,-44,-32,-38,-37,-33,-21,-110,-26,-120,-118,-113,-106,-128,-116,-118,-117,-142,-143,-154,-139,-155,-153,-155,-160,-152,-150,-152,-159,-165,-123,-133,-132,-214,-215,-233,-220,-191,-191,-202,-143,-225,-218,-214,-184,-362,-354,-323,-138,-150,-154,-173,-164,-253,0,-104,-129,-389,0,-50]} 1. d4 {[%emt 0:03:27]} Nf6 {[%emt 0:01:30]} 2. Bf4 {[%emt 0:00:24]} b6 {[%emt 0:00:09]} 3. e3 {[%emt 0:01:37]} Bb7 {[%emt 0:00:07]} 4. Nf3 {[%emt 0:00:26]} e6 {[%emt 0:00:15]} 5. Nbd2 {[%emt 0:00:50]} Be7 {[%emt 0:00:53]} 6. Bd3 {[%emt 0:00:41]} Nh5 {[%emt 0:01:27]} 7. Bg3 {[%emt 0:00:41]} d6 {[%emt 0:01:46]} 8. c3 {[%emt 0:05:16]} Nd7 {[%emt 0:00:26]} 9. Be4 {[%emt 0:01:45]} c6 {[%emt 0:02:29]} 10. a4 {[%emt 0:03:49]} a6 {[%emt 0:00:08]} 11. Qc2 {[%emt 0:03:35]} g6 {[%emt 0:01:38]} 12. b4 {[%emt 0:09:53]} O-O {[%emt 0:03:58]} (12... d5 $5 13. Bd3 $8 Nxg3 14. hxg3 O-O $15) 13. O-O {[%emt 0:01:42]} Nxg3 {[%emt 0:07:07]} 14. hxg3 {[%emt 0:00:28]} d5 {[%emt 0:00:46]} 15. Bd3 {[%emt 0:00:16]} c5 {[%emt 0:00:04]} 16. Rab1 {[%emt 0:08:17]} (16. bxc5 $11 bxc5 17. Rfb1) 16... Qc7 {[%emt 0:10:02]} (16... c4 $17 17. Be2 b5) 17. Qb2 {[%emt 0:09:45]} (17. bxc5 $11 {keeps the balance.} bxc5 18. c4) 17... c4 $17 {[%emt 0:05:30]} 18. Bc2 {[%emt 0:08:01]} f5 {[%emt 0:00:28]} 19. Nh2 {[%emt 0:00:48]} g5 {[%emt 0:10:10]} 20. g4 {[%emt 0:08:04] [#]} h5 $1 {[%emt 0:01:54][%mdl 512]} 21. gxh5 {[%emt 0:05:35]} (21. gxf5 exf5) 21... g4 {[%emt 0:02:24]} 22. g3 {[%emt 0:05:32]} Nf6 {[%emt 0:02:56]} 23. Kg2 {[%emt 0:01:13]} Kg7 {[%emt 0:01:09]} (23... Nxh5 24. Rh1 Nf6 25. f3 $17) 24. h6+ {[%emt 0:01:40]} Kxh6 {[%emt 0:03:21]} 25. Rh1 {[%emt 0:00:13]} Kg7 {[%emt 0:00:04]} 26. f3 {[%emt 0:01:10]} Rh8 {[%emt 0:03:08]} 27. Rbg1 {[%emt 0:04:34]} gxf3+ {[%emt 0:21:26]} 28. Ndxf3 {[%emt 0:01:46]} Bd6 {[%emt 0:00:33][%cal Oa8g8,Be7d6,Bd6g3,Bg3h4][%mdl 32] Repels Ne5} 29. Kf2 {[%emt 0:02:28]} (29. Ng5 $17 Bc8 (29... Bxg3 $2 30. Nxe6+ Kf7 31. Nxc7 $18) 30. Nhf3) 29... Ne4+ $19 {[%emt 0:02:57]} 30. Bxe4 {[%emt 0:00:41]} fxe4 {[%emt 0:00:20]} (30... dxe4 31. Nh4) 31. Nh4 {[%emt 0:00:54]} Raf8+ {[%emt 0:00:31]} 32. Ke2 {[%emt 0:02:12]} Bxg3 {[%emt 0:09:15]} 33. Ng4 {[%emt 0:00:16] Against Rf2+} (33. Nf1 $2 Rf2+ 34. Kd1 Rxb2 $19) (33. Kd1 $17 {is a better defense.} Kf7 (33... Rxh4 34. Qg2 $15) 34. Nf1 Bxh4 35. Rxh4 Rxh4 36. Qf2+ Ke8 37. Qxh4) 33... Rxh4 {[%emt 0:01:04]} (33... Bxh4 34. Ne5+ Kf6 35. Qc1 $18 (35. Rg6+ Ke7 $15) (35. Rg4 Bg3 $11)) 34. Rxh4 {[%emt 0:00:08]} Bxh4 {[%emt 0:00:03]} 35. Ne5+ {[%emt 0:00:20]} (35. Kd1 Kf7 36. Qg2) 35... Kh7 {[%emt 0:04:43]} 36. Rg2 {[%emt 0:00:01] Wards off Rf2+} Qe7 {[%emt 0:02:33]} (36... Rg8 $19 37. Rh2 Rg1 38. Rxh4+ Kg8 39. Rg4+ Rxg4 40. Nxg4 Qg3) 37. Qc1 {[%emt 0:01:19]} Rf5 $1 {[%emt 0:00:45]} 38. Qh1 {[%emt 0:01:38]} Qf6 {[%emt 0:00:56]} 39. Ng4 {[%emt 0:01:20] Prevents Rf2+} Qe7 {[%emt 0:00:18]} (39... Qg5 $19 {aiming for ...Bc6.} 40. Kd2 Kg7) 40. Ne5 $17 {[%emt 0:04:40] [#] Wards off Bc6} Rh5 $1 {[%emt 0:00:43] Threatens to win with ...Rh6.} 41. Rf2 $2 {[%emt 0:07:23][%mdl 8192] [#]} (41. a5 $17) 41... Rf5 $2 {[%emt 0:16:15]} (41... Bxf2 $2 42. Qxh5+ Kg8 43. Qg4+ (43. Kxf2 Qf6+ 44. Ke1 Bc8 $16) 43... Qg7 44. Qxe6+ (44. Kxf2 Qxg4 45. Nxg4 Bc6 $11) 44... Kh7 45. Kxf2 $18) (41... Qe8 $1 $19 42. Rf7+ Kg8 43. Rxb7 (43. Qh3 $2 Rxe5 44. dxe5 Qxf7 $19) 43... Qxa4 44. Qg1+ Rg5 45. Rb8+ Kg7 46. Rb7+ Kf8 47. Rb8+ Ke7 48. Rb7+ Kd6) 42. Rg2 {Weighted Error Value: White=0.31/Black=0.42.  Loses game:     	White=1     	---        Missed win:     	---       	Black=2      Mistake:       	White=5     	Black=2      Inaccurate:     	White=1     	---        OK:         	White=14    	Black=11     Best:        	White=1     	Black=3      Strong:       	---       	Black=2} (42. Rh2 $5 Rh5 $8 43. Rf2 $19) 1/2-1/2

[Event "British Championship 2024"]
[Site "Hull"]
[Date "2024.07.31"]
[Round "4.8"]
[White "Eggleston, David J"]
[Black "Grieve, Harry"]
[Result "1/2-1/2"]
[Annotator "TA"]
[ECO "D37"]
[WhiteElo "2335"]
[BlackElo "2470"]
[PlyCount "69"]
[EventDate "2024.07.31"]
[EventCountry "GBR"]
[SourceTitle "playchess.com"]
[Source "ChessBase"]
[SourceQuality "1"]
[TimeControl "40/5400+30:1800+30"]

{[%evp 9,69,28,22,26,33,29,32,35,29,22,29,23,30,21,19,22,26,20,26,29,28,16,19,29,16,0,0,0,0,0,-7,-3,0,-21,-6,-21,-2,-30,0,-15,0,-23,0,0,0,0,28,28,54,70,97,30,24,25,31,13,9,0,0,0,0,0]} 1. d4 {[%emt 0:00:02]} d5 {[%emt 0:00:08]} 2. c4 {[%emt 0:00:34]} e6 {[%emt 0:00:03]} 3. Nc3 {[%emt 0:00:03]} a6 {[%emt 0:00:05]} 4. cxd5 {[%emt 0:00:14]} exd5 {[%emt 0:00:01]} 5. Nf3 {[%emt 0:00:17]} Nf6 {[%emt 0:00:40]} 6. Bg5 {[%emt 0:00:07]} Be6 {[%emt 0:00:04]} 7. e3 {[%emt 0:00:09]} Nbd7 {[%emt 0:00:16]} 8. Bd3 {[%emt 0:00:12] White is slightly better.} Bd6 {[%emt 0:00:05]} 9. O-O {[%emt 0:00:30]} c6 {[%emt 0:00:05]} 10. Bf4 {[%emt 0:00:33]} Qc7 {[%emt 0:00:06]} 11. Bxd6 {[%emt 0:00:17]} Qxd6 {[%emt 0:00:02]} 12. h3 {[%emt 0:00:14]} O-O {[%emt 0:01:10]} 13. Rc1 {[%emt 0:00:18]} Qe7 {[%emt 0:03:16]} 14. Re1 {[%emt 0:02:01]} g6 {[%emt 0:03:15]} 15. a3 {[%emt 0:03:53]} Nb6 {[%emt 0:06:53]} 16. Qd2 {[%emt 0:07:32]} Rae8 {[%emt 0:07:33]} 17. e4 {[%emt 0:08:26]} dxe4 {[%emt 0:01:06]} 18. Nxe4 {[%emt 0:00:06]} Nxe4 {[%emt 0:02:25]} 19. Bxe4 {[%emt 0:00:10]} Qd8 {[%emt 0:11:02]} 20. Qh6 {[%emt 0:10:38] [#] Strongly threatening Ng5.} Qf6 {[%emt 0:00:07]} 21. Ne5 {[%emt 0:07:03]} Rd8 {[%emt 0:07:01]} 22. Rcd1 {[%emt 0:03:20]} Nc4 {[%emt 0:05:11]} 23. Nf3 {[%emt 0:07:31]} Bd5 {[%emt 0:07:43]} (23... Rfe8 {keeps more tension.} 24. Ng5 Qg7 25. Qh4 Bc8) 24. Qc1 {[%emt 0:04:25]} Nb6 {[%emt 0:06:47][%cal Bc4b6,Bb6d5,Bd5f6][%mdl 32]} 25. Ne5 {[%emt 0:02:14]} Bxe4 {[%emt 0:03:35]} 26. Rxe4 {[%emt 0:00:17]} Nd5 {[%emt 0:00:03]} 27. Rde1 {[%emt 0:02:48]} Qg7 {[%emt 0:01:23]} 28. Nd3 {[%emt 0:03:29]} Nf6 {[%emt 0:04:51]} 29. Re7 {[%emt 0:00:22]} Rd7 {[%emt 0:10:25]} 30. Nc5 {[%emt 0:11:51] White is more active.} ({White should play} 30. Qc5 $16) 30... Rxe7 $11 {[%emt 0:00:00]} 31. Rxe7 {[%emt 0:00:06]} Nd5 {[%emt 0:00:42][%csl LRd4,LRe7]} 32. Re5 {[%emt 0:09:49]} f6 {[%emt 0:01:27] The position is equal.} 33. Rxd5 {[%emt 0:04:46]} cxd5 {[%emt 0:00:17]} 34. Ne6 {[%emt 0:00:04][%csl LRf8,LRg7] Prevents Qc7} Qe7 {[%emt 0:02:50]} 35. Nxf8 {[%emt 0:00:06] Weighted Error Value: White=0.11 (very precise) /Black=0.08 (flawless) .  Mistake:       	White=1     	---        Inaccurate:     	White=1     	Black=4      OK:         	White=10    	Black=10     Best:        	White=1     	Black=2} 1/2-1/2

[Event "British Championship 2024"]
[Site "Hull"]
[Date "2024.07.31"]
[Round "4.9"]
[White "Balaji, Aaravamudhan"]
[Black "Williams, Simon K"]
[Result "1/2-1/2"]
[Annotator "TA"]
[ECO "A92"]
[WhiteElo "2346"]
[BlackElo "2450"]
[PlyCount "79"]
[EventDate "2024.07.31"]
[EventCountry "GBR"]
[SourceTitle "playchess.com"]
[Source "ChessBase"]
[SourceQuality "1"]
[TimeControl "40/5400+30:1800+30"]

{[%evp 14,79,24,22,41,24,30,8,33,35,34,0,-4,-10,-2,-10,-3,-16,-14,-17,-14,-14,-10,-46,0,0,0,-22,-9,-12,-24,-25,0,0,39,0,0,0,0,0,0,0,0,0,0,0,0,0,0,0,0,0,0,0,0,0,0,0,0,0,0,0,0,0,0,0,0,0]} 1. d4 {[%emt 0:00:20]} e6 {[%emt 0:00:21]} 2. c4 {[%emt 0:00:48]} f5 {[%emt 0:00:37]} 3. g3 {[%emt 0:00:33]} Nf6 {[%emt 0:00:29]} 4. Bg2 {[%emt 0:00:08]} d5 {[%emt 0:00:51]} 5. Bf4 {[%emt 0:00:57]} Be7 {[%emt 0:03:29]} 6. Nf3 {[%emt 0:00:19]} O-O {[%emt 0:02:24]} 7. O-O {[%emt 0:00:33]} c6 {[%emt 0:05:27]} 8. Qc2 {[%emt 0:01:24]} Nh5 {[%emt 0:02:19]} 9. Be5 {[%emt 0:20:57]} Nd7 {[%emt 0:00:44]} 10. Nc3 {[%emt 0:01:09]} Nxe5 {[%emt 0:05:05]} 11. Nxe5 {[%emt 0:01:18]} Nf6 {[%emt 0:08:28]} 12. c5 {[%emt 0:01:18]} Nd7 {[%emt 0:09:28]} 13. Nxd7 {[%emt 0:13:48]} Qxd7 {[%emt 0:00:07]} 14. f4 {[%emt 0:03:43]} b6 {[%emt 0:01:41]} 15. b4 {[%emt 0:00:08]} Ba6 {[%emt 0:00:46]} 16. Rfb1 {[%emt 0:02:46]} Bc4 {[%emt 0:03:10]} 17. e3 {[%emt 0:01:05]} g5 {[%emt 0:05:11]} 18. Nd1 {[%emt 0:19:20][%cal Bc3d1,Bd1b2,Bb2a4,Ba4b6][%mdl 32]} gxf4 {[%emt 0:03:40]} (18... a5 $1 $15 {was preferrable.} 19. Nb2 b5) 19. gxf4 $11 {[%emt 0:00:02]} (19. exf4 $2 {too greedy.} Bf6 20. Kh1 Bxd4 $19) 19... a5 {[%emt 0:21:33] [#] Strongly threatening ...axb4.} 20. a3 {[%emt 0:01:20]} b5 {[%emt 0:02:15]} 21. Nb2 {[%emt 0:03:40]} axb4 {[%emt 0:02:50]} 22. axb4 {[%emt 0:02:00]} Ba2 {[%emt 0:00:04]} 23. Rc1 {[%emt 0:01:11]} Ra7 {[%emt 0:00:24] [#]} 24. Na4 $1 {[%emt 0:03:56] aiming for Nb6.} Bc4 {[%emt 0:06:21] The position is equal.} (24... Rxa4 25. Rxa2) 25. Nb6 {[%emt 0:00:31]} Qb7 {[%emt 0:00:05]} 26. Qb2 {[%emt 0:06:54]} Rxa1 {[%emt 0:01:51]} 27. Rxa1 {[%emt 0:01:03]} Bd8 {[%emt 0:00:04]} 28. Qa3 {[%emt 0:03:51]} Bxb6 {[%emt 0:00:08]} 29. cxb6 {[%emt 0:00:02]} Qxb6 {[%emt 0:00:06]} 30. Qa7 {[%emt 0:00:40]} Qxa7 {[%emt 0:09:28]} 31. Rxa7 {[%emt 0:00:02][%mdl 4096] Endgame. KRB-KRB} Rf7 {[%emt 0:00:06]} 32. Ra8+ {[%emt 0:02:11]} Kg7 {[%emt 0:00:11]} 33. Bf3 {[%emt 0:00:40]} Kf6 {[%emt 0:00:24]} 34. Kf2 {[%emt 0:00:28]} Bd3 {[%emt 0:00:06]} 35. Ra6 {[%emt 0:01:45]} Rc7 {[%emt 0:00:29]} 36. Bh5 {[%emt 0:00:52]} Ke7 {[%emt 0:02:06]} 37. Ra8 {[%emt 0:00:47]} Be4 {[%emt 0:00:07]} 38. Re8+ {[%emt 0:04:56]} Kf6 {[%emt 0:01:05]} 39. Rf8+ {[%emt 0:00:09]} Kg7 $1 {[%emt 0:00:37]} 40. Ra8 {[%emt 0:00:06] Weighted Error Value: White=0.08 (flawless) /Black=0.06 (flawless) .  Mistake:       	---       	Black=1      Inaccurate:     	White=3     	Black=1      OK:         	White=14    	Black=16     Best:        	---       	Black=1      Strong:       	---       	Black=1} 1/2-1/2